bitfinex/quotes_BTCUSD_20230904
["timestamp","ask_amount","ask_price","bid_price","bid_amount"]
[1693829393805,4.43099332,25889.0,25888.0,71.61355099]
[1693829394042,4.43207332,25889.0,25888.0,71.61355099]
[1693829394255,4.43189332,25889.0,25888.0,71.61355099]
[1693829394445,4.43207332,25889.0,25888.0,71.61355099]
[1693829394620,4.43225332,25889.0,25888.0,71.61355099]
[1693829394819,4.43207332,25889.0,25888.0,71.61355099]
[1693829395027,4.43189332,25889.0,25888.0,71.61355099]
[1693829395231,4.43225332,25889.0,25888.0,71.61355099]
[1693829395440,4.23203332,25889.0,25888.0,71.61355099]
[1693829395643,4.23179332,25889.0,25888.0,71.61355099]
[1693829395868,4.23191332,25889.0,25888.0,71.61355099]
[1693829396067,4.23299332,25889.0,25888.0,71.61355099]
[1693829396444,3.95475664,25889.0,25888.0,71.61355099]
[1693829396819,3.95511664,25889.0,25888.0,71.61355099]
[1693829397260,3.95547664,25889.0,25888.0,71.61355099]
[1693829397460,3.95583664,25889.0,25888.0,71.61355099]
[1693829397677,3.95571664,25889.0,25888.0,71.61355099]
[1693829397848,4.15665664,25889.0,25888.0,71.61355099]
[1693829398059,4.13809664,25889.0,25888.0,71.61355099]
[1693829398268,4.15899664,25889.0,25888.0,71.61355099]
[1693829398476,4.15953664,25889.0,25888.0,71.61355099]
[1693829398678,4.15539664,25889.0,25888.0,71.61355099]
[1693829399140,4.16511664,25889.0,25888.0,71.61355099]
[1693829399369,4.16385664,25889.0,25888.0,71.61355099]
[1693829399578,4.16367664,25889.0,25888.0,71.61355099]
[1693829399786,4.16349664,25889.0,25888.0,71.61355099]
[1693829399984,4.16133664,25889.0,25888.0,71.61355099]
[1693829400201,4.16421664,25889.0,25888.0,71.61355099]
[1693829400404,4.17141664,25889.0,25888.0,71.61355099]
[1693829400612,4.17213664,25889.0,25888.0,71.61355099]
[1693829400822,4.56330106,25889.0,25888.0,71.61355099]
[1693829401034,4.61514106,25889.0,25888.0,71.61355099]
[1693829401239,4.61046106,25889.0,25888.0,71.61355099]
[1693829401471,4.38655664,25889.0,25888.0,71.61355099]
[1693829401676,4.38583664,25889.0,25888.0,71.61355099]
[1693829401893,4.37881664,25889.0,25888.0,71.61355099]
[1693829402103,4.38133664,25889.0,25888.0,71.61355099]
[1693829402311,4.38205664,25889.0,25888.0,71.61355099]
[1693829402512,4.38151664,25889.0,25888.0,71.61355099]
[1693829402743,4.38079664,25889.0,25888.0,71.61355099]
[1693829402945,4.38025664,25889.0,25888.0,71.61355099]
[1693829403185,4.37845664,25889.0,25888.0,71.61355099]
[1693829403393,4.37773664,25889.0,25888.0,71.61355099]
[1693829403601,4.37737664,25889.0,25888.0,71.61355099]
[1693829403804,4.37683664,25889.0,25888.0,71.61355099]
[1693829404042,4.37593664,25889.0,25888.0,71.61355099]
[1693829404478,4.37503664,25889.0,25888.0,71.61355099]
[1693829404689,4.37431664,25889.0,25888.0,71.61355099]
[1693829404907,4.37467664,25889.0,25888.0,71.61355099]
[1693829405121,4.37341664,25889.0,25888.0,71.61355099]
[1693829405332,4.37413664,25889.0,25888.0,71.61355099]
[1693829405532,4.37359664,25889.0,25888.0,71.61355099]
[1693829405743,4.37305664,25889.0,25888.0,71.61355099]
[1693829405957,4.37161664,25889.0,25888.0,71.61355099]
[1693829406171,4.37053664,25889.0,25888.0,71.61355099]
[1693829406382,4.36999664,25889.0,25888.0,71.61355099]
[1693829406623,4.36945664,25889.0,25888.0,71.61355099]
[1693829406829,4.36819664,25889.0,25888.0,71.61355099]
[1693829407054,4.35703664,25889.0,25888.0,71.61355099]
[1693829407263,4.35667664,25889.0,25888.0,71.61355099]
[1693829407474,4.34911664,25889.0,25888.0,71.61355099]
[1693829407678,4.32877664,25889.0,25888.0,71.61355099]
[1693829407930,4.31869664,25889.0,25888.0,71.61355099]
[1693829408334,4.31815664,25889.0,25888.0,71.61355099]
[1693829408541,4.31761664,25889.0,25888.0,71.61355099]
[1693829408746,4.31743664,25889.0,25888.0,71.61355099]
[1693829409216,4.31599664,25889.0,25888.0,71.61355099]
[1693829409430,4.31293664,25889.0,25888.0,71.61355099]
[1693829409644,4.31275664,25889.0,25888.0,71.61355099]
[1693829409852,4.31131664,25889.0,25888.0,71.61355099]
[1693829410056,4.31149664,25889.0,25888.0,71.61355099]
[1693829410263,4.31689664,25889.0,25888.0,71.61355099]
[1693829410494,4.31311664,25889.0,25888.0,71.61355099]
[1693829410695,4.31383664,25889.0,25888.0,71.61355099]
[1693829410927,4.31311664,25889.0,25888.0,71.61355099]
[1693829411365,4.31329664,25889.0,25888.0,71.61355099]
[1693829411581,4.31239664,25889.0,25888.0,71.61355099]
[1693829411803,4.31221664,25889.0,25888.0,71.61355099]
[1693829412012,4.31185664,25889.0,25888.0,71.61355099]
[1693829412228,4.31419664,25889.0,25888.0,71.61355099]
[1693829412441,4.31383664,25889.0,25888.0,71.61355099]
[1693829412652,4.30933664,25889.0,25888.0,71.61355099]
[1693829412860,4.30825664,25889.0,25888.0,71.61355099]
[1693829413079,4.31293664,25889.0,25888.0,71.61355099]
[1693829413287,4.31275664,25889.0,25888.0,71.61355099]
[1693829413516,4.31293664,25889.0,25888.0,71.61355099]
[1693829413728,4.31275664,25889.0,25888.0,71.61355099]
[1693829413928,4.30771664,25889.0,25888.0,71.61355099]
[1693829414147,4.29475664,25889.0,25888.0,71.61355099]
[1693829414407,4.29169664,25889.0,25888.0,71.61355099]
[1693829414642,4.29979664,25889.0,25888.0,71.61355099]
[1693829414851,4.30537664,25889.0,25888.0,71.61355099]
[1693829415052,4.30951664,25889.0,25888.0,71.61355099]
[1693829415458,4.6218609,25889.0,25888.0,71.61355099]
[1693829415737,4.6204209,25889.0,25888.0,71.61355099]
[1693829415912,4.6206009,25889.0,25888.0,71.61355099]
[1693829416122,4.6197009,25889.0,25888.0,71.61355099]
[1693829416506,4.6022409,25889.0,25888.0,71.61355099]
[1693829416700,4.6020609,25889.0,25888.0,71.61355099]
[1693829417004,4.6018809,25889.0,25888.0,71.61355099]
[1693829417197,4.6022409,25889.0,25888.0,71.61355099]
[1693829417405,4.6020609,25889.0,25888.0,71.61355099]
[1693829417840,4.6017009,25889.0,25888.0,71.61355099]
[1693829417990,4.6013409,25889.0,25888.0,71.61355099]
[1693829418193,4.6004409,25889.0,25888.0,71.61355099]
[1693829418425,4.5995409,25889.0,25888.0,71.61355099]
[1693829418622,4.5999009,25889.0,25888.0,71.61355099]
[1693829418821,4.6006209,25889.0,25888.0,71.61355099]
[1693829419025,4.6008009,25889.0,25888.0,71.61355099]
[1693829419279,4.6002609,25889.0,25888.0,71.61355099]
[1693829419570,4.6009809,25889.0,25888.0,71.61355099]
[1693829419721,4.6011609,25889.0,25888.0,71.61355099]
[1693829419953,4.6009809,25889.0,25888.0,71.61355099]
[1693829420157,4.6027809,25889.0,25888.0,71.61355099]
[1693829420356,4.6018809,25889.0,25888.0,71.61355099]
[1693829420556,4.6017009,25889.0,25888.0,71.61355099]
[1693829421031,4.6033209,25889.0,25888.0,71.61355099]
[1693829421233,4.6081809,25889.0,25888.0,71.61355099]
[1693829421913,4.6080009,25889.0,25888.0,71.61355099]
[1693829422115,4.6076409,25889.0,25888.0,71.61355099]
[1693829422342,4.6056609,25889.0,25888.0,71.61355099]
[1693829422530,4.6008009,25889.0,25888.0,71.61355099]
[1693829422728,4.5997209,25889.0,25888.0,71.61355099]
[1693829423138,4.5993609,25889.0,25888.0,71.61355099]
[1693829423664,4.6062009,25889.0,25888.0,71.61355099]
[1693829423799,4.5925209,25889.0,25888.0,71.61355099]
[1693829424020,4.5860409,25889.0,25888.0,71.61355099]
[1693829424262,4.5882009,25889.0,25888.0,71.61355099]
[1693829424466,4.3688409,25889.0,25888.0,71.61355099]
[1693829424640,4.3462809,25889.0,25888.0,71.61355099]
[1693829424868,4.3544409,25889.0,25888.0,71.61355099]
[1693829425070,4.3590009,25889.0,25888.0,71.61355099]
[1693829425278,4.3480809,25889.0,25888.0,71.61355099]
[1693829425471,4.3471209,25889.0,25888.0,71.61355099]
[1693829425751,4.3476009,25889.0,25888.0,71.61355099]
[1693829426169,4.3448409,25889.0,25888.0,71.61355099]
[1693829426382,4.3464009,25889.0,25888.0,71.61355099]
[1693829426588,4.3471209,25889.0,25888.0,71.61355099]
[1693829426798,4.3473609,25889.0,25888.0,71.61355099]
[1693829426976,4.3477209,25889.0,25888.0,71.61355099]
[1693829427212,4.3483209,25889.0,25888.0,71.61355099]
[1693829427445,4.3576809,25889.0,25888.0,71.61355099]
[1693829427653,4.3597209,25889.0,25888.0,71.61355099]
[1693829427862,4.62073034,25889.0,25888.0,71.61355099]
[1693829428073,4.82467034,25889.0,25888.0,71.61355099]
[1693829428278,4.82431034,25889.0,25888.0,71.61355099]
[1693829428486,4.82503034,25889.0,25888.0,71.61355099]
[1693829428878,4.82521034,25889.0,25888.0,71.61355099]
[1693829429109,4.83727034,25889.0,25888.0,71.61355099]
[1693829429324,4.83601034,25889.0,25888.0,71.61355099]
[1693829429506,4.83619034,25889.0,25888.0,71.61355099]
[1693829429763,4.83673034,25889.0,25888.0,71.61355099]
[1693829429993,4.83349034,25889.0,25888.0,71.61355099]
[1693829430210,4.84969034,25889.0,25888.0,71.61355099]
[1693829430639,4.86193034,25889.0,25888.0,71.61355099]
[1693829430863,4.86157034,25889.0,25888.0,71.61355099]
[1693829431071,4.85995034,25889.0,25888.0,71.61355099]
[1693829431278,4.85563034,25889.0,25888.0,71.61355099]
[1693829431462,4.85545034,25889.0,25888.0,71.61355099]
[1693829431672,4.85815034,25889.0,25888.0,71.61355099]
[1693829431878,4.85887034,25889.0,25888.0,71.61355099]
[1693829432090,4.85995034,25889.0,25888.0,71.61355099]
[1693829432303,4.86085034,25889.0,25888.0,71.61355099]
[1693829432524,4.86121034,25889.0,25888.0,71.61355099]
[1693829432734,4.86085034,25889.0,25888.0,71.61355099]
[1693829432935,4.86067034,25889.0,25888.0,71.61355099]
[1693829433181,4.86049034,25889.0,25888.0,71.61355099]
[1693829433411,4.87813034,25889.0,25888.0,71.61355099]
[1693829433622,4.88155034,25889.0,25888.0,71.61355099]
[1693829433842,4.88137034,25889.0,25888.0,71.61355099]
[1693829434058,4.88047034,25889.0,25888.0,71.61355099]
[1693829434265,4.87849034,25889.0,25888.0,71.61355099]
[1693829434498,4.87363034,25889.0,25888.0,71.61355099]
[1693829434705,4.87417034,25889.0,25888.0,71.61355099]
[1693829434918,4.87345034,25889.0,25888.0,71.61355099]
[1693829435136,4.87183034,25889.0,25888.0,71.61355099]
[1693829435352,4.87093034,25889.0,25888.0,71.61355099]
[1693829435566,4.85075034,25889.0,25888.0,71.61355099]
[1693829435761,4.87039034,25889.0,25888.0,71.61355099]
[1693829436083,4.87021034,25889.0,25888.0,71.61355099]
[1693829436291,4.87291034,25889.0,25888.0,71.61355099]
[1693829436483,4.87327034,25889.0,25888.0,71.61355099]
[1693829436718,4.87111034,25889.0,25888.0,71.60855099]
[1693829436894,4.87093034,25889.0,25888.0,71.60855099]
[1693829437135,4.87039034,25889.0,25888.0,71.60855099]
[1693829437342,4.87129034,25889.0,25888.0,71.60855099]
[1693829437540,4.87201034,25889.0,25888.0,71.60855099]
[1693829437739,4.87183034,25889.0,25888.0,71.60842992]
[1693829437982,4.87093034,25889.0,25888.0,71.60842992]
[1693829438397,4.76397034,25889.0,25888.0,71.60842992]
[1693829438602,4.76793034,25889.0,25888.0,71.60842992]
[1693829438815,4.76451034,25889.0,25888.0,71.60842992]
[1693829439023,4.81743034,25889.0,25888.0,71.60842992]
[1693829439236,4.80825034,25889.0,25888.0,71.60842992]
[1693829439437,4.80411034,25889.0,25888.0,71.60842992]
[1693829439676,4.72761034,25889.0,25888.0,71.60842992]
[1693829439886,4.71429034,25889.0,25888.0,71.60842992]
[1693829440066,4.49715034,25889.0,25888.0,71.60842992]
[1693829440269,4.49607034,25889.0,25888.0,71.60842992]
[1693829440491,4.49619034,25889.0,25888.0,71.60842992]
[1693829440700,4.49835034,25889.0,25888.0,71.60842992]
[1693829440928,4.49055034,25889.0,25888.0,71.60842992]
[1693829441139,4.48539034,25889.0,25888.0,71.60842992]
[1693829441329,4.48671034,25889.0,25888.0,71.60842992]
[1693829441540,4.48695034,25889.0,25888.0,71.60842992]
[1693829441748,4.48611034,25889.0,25888.0,71.60842992]
[1693829441952,4.48635034,25889.0,25888.0,71.60842992]
[1693829442152,3.6769745,25889.0,25888.0,71.60842992]
[1693829442366,3.28014524,25889.0,25888.0,71.60842992]
[1693829442568,4.49423109,25889.0,25888.0,71.60842992]
[1693829442776,4.49867109,25889.0,25888.0,71.60842992]
[1693829443184,4.50419109,25889.0,25888.0,71.60842992]
[1693829443387,4.51127109,25889.0,25888.0,71.60842992]
[1693829443543,4.71269109,25889.0,25888.0,71.60842992]
[1693829443947,4.71107109,25889.0,25888.0,71.60842992]
[1693829444320,4.70241109,25889.0,25888.0,71.60842992]
[1693829444529,4.73249109,25889.0,25888.0,71.60842992]
[1693829444767,4.73483109,25889.0,25888.0,71.60842992]
[1693829445005,4.73447109,25889.0,25888.0,71.60842992]
[1693829445271,4.73169446,25889.0,25888.0,71.60842992]
[1693829445499,4.73439446,25889.0,25888.0,71.60842992]
[1693829445702,4.73547446,25889.0,25888.0,71.60842992]
[1693829446136,4.73511446,25889.0,25888.0,71.60842992]
[1693829446450,4.71511446,25889.0,25888.0,71.60842992]
[1693829446652,4.73511446,25889.0,25888.0,71.60842992]
[1693829446857,4.73565446,25889.0,25888.0,71.60842992]
[1693829447056,4.73547446,25889.0,25888.0,71.60842992]
[1693829447275,4.73565446,25889.0,25888.0,71.60842992]
[1693829447476,4.73529446,25889.0,25888.0,71.60842992]
[1693829447802,4.73493446,25889.0,25888.0,71.60842992]
[1693829448178,4.72827446,25889.0,25888.0,71.60842992]
[1693829448380,4.72647446,25889.0,25888.0,71.60842992]
[1693829448625,4.72287446,25889.0,25888.0,71.60842992]
[1693829448850,4.72125446,25889.0,25888.0,71.60842992]
[1693829449054,4.72557446,25889.0,25888.0,71.60842992]
[1693829449254,4.72665446,25889.0,25888.0,71.60842992]
[1693829449603,4.72557446,25889.0,25888.0,71.60842992]
[1693829449830,4.72521446,25889.0,25888.0,71.60842992]
[1693829450313,4.72431446,25889.0,25888.0,71.60842992]
[1693829450548,4.72395446,25889.0,25888.0,71.60842992]
[1693829450787,4.72449446,25889.0,25888.0,71.60842992]
[1693829451025,4.72377446,25889.0,25888.0,71.60842992]
[1693829451257,4.72485446,25889.0,25888.0,71.60842992]
[1693829451461,4.72431446,25889.0,25888.0,71.60842992]
[1693829451638,4.71945446,25889.0,25888.0,71.60842992]
[1693829451869,4.71909446,25889.0,25888.0,71.60842992]
[1693829452045,4.71873446,25889.0,25888.0,71.60842992]
[1693829452286,4.72017446,25889.0,25888.0,71.60842992]
[1693829452414,4.72467446,25889.0,25888.0,71.60842992]
[1693829452611,4.72395446,25889.0,25888.0,71.60842992]
[1693829452814,4.72845446,25889.0,25888.0,71.60842992]
[1693829453036,4.72827446,25889.0,25888.0,71.60842992]
[1693829453263,4.73583446,25889.0,25888.0,71.60842992]
[1693829453460,4.73277446,25889.0,25888.0,71.60842992]
[1693829453830,4.73205446,25889.0,25888.0,71.60842992]
[1693829454037,4.73169446,25889.0,25888.0,71.60842992]
[1693829454217,4.72683446,25889.0,25888.0,71.60842992]
[1693829454554,4.73403446,25889.0,25888.0,71.60842992]
[1693829454757,4.85935446,25889.0,25888.0,71.60842992]
[1693829454967,4.91443446,25889.0,25888.0,71.60842992]
[1693829455144,4.90237446,25889.0,25888.0,71.60842992]
[1693829455382,4.90687446,25889.0,25888.0,71.60842992]
[1693829455585,4.90579446,25889.0,25888.0,71.60842992]
[1693829455789,4.90255446,25889.0,25888.0,71.60842992]
[1693829455999,4.90039446,25889.0,25888.0,71.60842992]
[1693829456207,4.89679446,25889.0,25888.0,71.60842992]
[1693829456415,4.89733446,25889.0,25888.0,71.60842992]
[1693829456631,4.89661446,25889.0,25888.0,71.60842992]
[1693829456844,4.89571446,25889.0,25888.0,71.60842992]
[1693829457048,4.89499446,25889.0,25888.0,71.60842992]
[1693829457252,4.89607446,25889.0,25888.0,71.60842992]
[1693829457459,4.89319446,25889.0,25888.0,71.60842992]
[1693829457663,4.89463446,25889.0,25888.0,71.60842992]
[1693829457871,4.89175446,25889.0,25888.0,71.60842992]
[1693829458080,4.89193446,25889.0,25888.0,71.60842992]
[1693829458257,4.89085446,25889.0,25888.0,71.60842992]
[1693829458521,4.89103446,25889.0,25888.0,71.60842992]
[1693829458707,4.88617446,25889.0,25888.0,71.60842992]
[1693829458911,4.89031446,25889.0,25888.0,71.60842992]
[1693829459087,4.88833446,25889.0,25888.0,71.60842992]
[1693829459306,4.88437446,25889.0,25888.0,71.60842992]
[1693829459627,4.88347446,25889.0,25888.0,71.60842992]
[1693829459898,4.88293446,25889.0,25888.0,71.60842992]
[1693829460098,4.87987446,25889.0,25888.0,71.60842992]
[1693829460256,4.88563446,25889.0,25888.0,71.60842992]
[1693829460454,4.87519446,25889.0,25888.0,71.60842992]
[1693829460673,4.85701446,25889.0,25888.0,71.60842992]
[1693829460872,4.85917446,25889.0,25888.0,71.60842992]
[1693829461070,4.85431446,25889.0,25888.0,71.60842992]
[1693829461272,4.85017446,25889.0,25888.0,71.60842992]
[1693829461493,4.83271446,25889.0,25888.0,71.60842992]
[1693829461656,4.82497446,25889.0,25888.0,71.60842992]
[1693829461857,4.82227446,25889.0,25888.0,71.60842992]
[1693829462318,4.81975446,25889.0,25888.0,71.60842992]
[1693829462677,4.82011446,25889.0,25888.0,71.60842992]
[1693829462884,4.81993446,25889.0,25888.0,71.60842992]
[1693829463067,4.81975446,25889.0,25888.0,71.60842992]
[1693829463690,4.81921446,25889.0,25888.0,71.60842992]
[1693829463911,4.81831446,25889.0,25888.0,71.60842992]
[1693829464116,4.81687446,25889.0,25888.0,71.60842992]
[1693829464326,4.61491446,25889.0,25888.0,71.60842992]
[1693829464800,4.61443446,25889.0,25888.0,71.60842992]
[1693829464977,4.61491446,25889.0,25888.0,71.60842992]
[1693829465178,4.59527446,25889.0,25888.0,71.60842992]
[1693829465437,4.60067446,25889.0,25888.0,71.60842992]
[1693829465604,4.60091446,25889.0,25888.0,71.60842992]
[1693829465777,4.80947446,25889.0,25888.0,71.60842992]
[1693829466145,4.80893446,25889.0,25888.0,71.60842992]
[1693829466329,4.80749446,25889.0,25888.0,71.60842992]
[1693829466653,4.80677446,25889.0,25888.0,71.60842992]
[1693829466832,4.80317446,25889.0,25888.0,71.60842992]
[1693829467030,4.80677446,25889.0,25888.0,71.60842992]
[1693829467272,4.81307446,25889.0,25888.0,71.60842992]
[1693829467475,4.72695446,25889.0,25888.0,71.60842992]
[1693829467677,4.80623446,25889.0,25888.0,71.60842992]
[1693829467883,4.81055446,25889.0,25888.0,71.60842992]
[1693829468087,4.72839446,25889.0,25888.0,71.60842992]
[1693829468323,4.80767446,25889.0,25888.0,71.60842992]
[1693829468550,4.80749446,25889.0,25888.0,71.60842992]
[1693829468758,4.81127446,25889.0,25888.0,71.60842992]
[1693829468968,4.81397446,25889.0,25888.0,71.60842992]
[1693829469176,4.81073446,25889.0,25888.0,71.60842992]
[1693829469381,4.81019446,25889.0,25888.0,71.60842992]
[1693829469593,4.60091446,25889.0,25888.0,71.60842992]
[1693829469812,4.59791446,25889.0,25888.0,71.60842992]
[1693829470018,4.59599446,25889.0,25888.0,71.60842992]
[1693829470203,4.59911446,25889.0,25888.0,71.60842992]
[1693829470358,4.59863446,25889.0,25888.0,71.60842992]
[1693829470567,4.59911446,25889.0,25888.0,71.60842992]
[1693829470796,4.59959446,25889.0,25888.0,71.60842992]
[1693829471213,4.59911446,25889.0,25888.0,71.60842992]
[1693829471411,4.59947446,25889.0,25888.0,71.60842992]
[1693829471619,4.59935446,25889.0,25888.0,71.60842992]
[1693829471977,4.27034502,25889.0,25888.0,71.60842992]
[1693829472193,3.73062971,25889.0,25888.0,71.60842992]
[1693829472408,3.5200299,25889.0,25888.0,71.71592992]
[1693829472646,3.0285004,25889.0,25888.0,71.71592992]
[1693829472864,3.0288004,25889.0,25888.0,71.71592992]
[1693829473056,3.0289204,25889.0,25888.0,71.71592992]
[1693829473281,3.0303604,25889.0,25888.0,71.71592992]
[1693829473501,3.0496404,25889.0,25888.0,71.71592992]
[1693829473726,2.77388021,25889.0,25888.0,71.71592992]
[1693829473950,2.77472021,25889.0,25888.0,71.71592992]
[1693829474420,2.36396021,25889.0,25888.0,71.71592992]
[1693829474647,2.63996021,25889.0,25888.0,71.71592992]
[1693829474917,2.63948021,25889.0,25888.0,71.71592992]
[1693829475101,2.63012021,25889.0,25888.0,71.71592992]
[1693829475351,2.65400021,25889.0,25888.0,71.71592992]
[1693829475562,2.59718021,25889.0,25888.0,71.71592992]
[1693829475773,2.59922021,25889.0,25888.0,71.71592992]
[1693829475961,2.87291759,25889.0,25888.0,71.71592992]
[1693829476239,2.87891759,25889.0,25888.0,71.71592992]
[1693829476455,2.88485759,25889.0,25888.0,71.71592992]
[1693829476667,2.89211759,25889.0,25888.0,71.71592992]
[1693829476877,2.89133759,25889.0,25888.0,71.71592992]
[1693829477118,2.89145759,25889.0,25888.0,71.71592992]
[1693829477329,3.05543759,25889.0,25888.0,71.71592992]
[1693829477528,3.05579759,25889.0,25888.0,71.71592992]
[1693829477715,3.05627759,25889.0,25888.0,71.71592992]
[1693829477961,3.05375759,25889.0,25888.0,71.71592992]
[1693829478148,3.05759759,25889.0,25888.0,71.71592992]
[1693829478363,3.05891759,25889.0,25888.0,71.71592992]
[1693829478568,3.05939759,25889.0,25888.0,71.71592992]
[1693829478779,3.05747759,25889.0,25888.0,71.71592992]
[1693829478983,3.06011759,25889.0,25888.0,71.71592992]
[1693829479138,3.05903759,25889.0,25888.0,71.71592992]
[1693829479337,3.05999759,25889.0,25888.0,71.71592992]
[1693829479542,3.05675759,25889.0,25888.0,71.71592992]
[1693829479863,2.90639759,25889.0,25888.0,71.71592992]
[1693829480065,2.90963759,25889.0,25888.0,71.71592992]
[1693829480225,2.90783759,25889.0,25888.0,71.71592992]
[1693829480427,2.90891759,25889.0,25888.0,71.71592992]
[1693829480627,2.91023759,25889.0,25888.0,71.71592992]
[1693829480829,2.91035759,25889.0,25888.0,71.71592992]
[1693829481257,2.91083759,25889.0,25888.0,71.71592992]
[1693829481421,2.91173759,25889.0,25888.0,71.71592992]
[1693829481621,2.91089759,25889.0,25888.0,71.71592992]
[1693829481851,2.91215759,25889.0,25888.0,71.71592992]
[1693829482135,2.91173759,25889.0,25888.0,71.71592992]
[1693829482346,2.90957759,25889.0,25888.0,71.71592992]
[1693829482563,2.90771759,25889.0,25888.0,71.71592992]
[1693829482776,2.90555759,25889.0,25888.0,71.71592992]
[1693829482986,2.90774079,25889.0,25888.0,71.71592992]
[1693829483219,2.91488079,25889.0,25888.0,71.71592992]
[1693829483427,3.04982079,25889.0,25888.0,71.71592992]
[1693829483670,3.05042079,25889.0,25888.0,71.71592992]
[1693829483885,3.04946079,25889.0,25888.0,71.71592992]
[1693829484074,3.04658079,25889.0,25888.0,71.71592992]
[1693829484283,3.04826079,25889.0,25888.0,71.71592992]
[1693829484496,3.05162079,25889.0,25888.0,71.71592992]
[1693829484710,3.04994079,25889.0,25888.0,71.71592992]
[1693829484944,2.91392079,25889.0,25888.0,71.71592992]
[1693829485161,2.91404079,25889.0,25888.0,71.71592992]
[1693829485377,2.91386079,25889.0,25888.0,71.71592992]
[1693829485585,2.91428079,25889.0,25888.0,71.71592992]
[1693829485803,2.91470079,25889.0,25888.0,71.71592992]
[1693829486017,2.91314079,25889.0,25888.0,71.71592992]
[1693829486238,2.91410079,25889.0,25888.0,71.71592992]
[1693829486446,2.91110079,25889.0,25888.0,71.71592992]
[1693829486658,2.91314079,25889.0,25888.0,71.71592992]
[1693829486869,2.91326079,25889.0,25888.0,71.71592992]
[1693829487093,2.91236079,25889.0,25888.0,71.71592992]
[1693829487302,2.91386079,25889.0,25888.0,71.71592992]
[1693829487516,2.90456079,25889.0,25888.0,71.71592992]
[1693829487726,2.90474079,25889.0,25888.0,71.71592992]
[1693829487934,2.90480079,25889.0,25888.0,71.71592992]
[1693829488091,2.90341346,25889.0,25888.0,71.71592992]
[1693829488299,2.90713346,25889.0,25888.0,71.71592992]
[1693829488503,2.90893346,25889.0,25888.0,71.71592992]
[1693829488684,2.91169346,25889.0,25888.0,71.71592992]
[1693829488886,2.90893346,25889.0,25888.0,71.71592992]
[1693829489083,2.91097346,25889.0,25888.0,71.71592992]
[1693829489386,2.91103346,25889.0,25888.0,71.71592992]
[1693829489640,2.91115346,25889.0,25888.0,71.71592992]
[1693829489804,2.91079346,25889.0,25888.0,71.71592992]
[1693829490145,3.04573346,25889.0,25888.0,71.71592992]
[1693829490380,3.04909346,25889.0,25888.0,71.71592992]
[1693829490720,3.05125346,25889.0,25888.0,71.71592992]
[1693829490974,3.05233346,25889.0,25888.0,71.71592992]
[1693829491190,3.06277346,25889.0,25888.0,71.71592992]
[1693829491410,3.07801346,25889.0,25888.0,71.71592992]
[1693829491621,3.07645346,25889.0,25888.0,71.71592992]
[1693829491828,3.07837346,25889.0,25888.0,71.71592992]
[1693829492036,3.07333346,25889.0,25888.0,71.71592992]
[1693829492242,3.07693346,25889.0,25888.0,71.71592992]
[1693829492450,3.07573346,25889.0,25888.0,71.71592992]
[1693829492658,3.08101346,25889.0,25888.0,71.71592992]
[1693829492866,3.08077346,25889.0,25888.0,71.71592992]
[1693829493051,2.83575608,25889.0,25888.0,71.71592992]
[1693829493256,2.83599608,25889.0,25888.0,71.71592992]
[1693829493471,3.12298939,25889.0,25888.0,71.71592992]
[1693829493697,2.83659608,25889.0,25888.0,71.71592992]
[1693829493901,2.83623608,25889.0,25888.0,71.71592992]
[1693829494143,2.83599608,25889.0,25888.0,71.71592992]
[1693829494347,3.09343699,25889.0,25888.0,71.71592992]
[1693829494549,3.09319699,25889.0,25888.0,71.71592992]
[1693829494761,3.09187699,25889.0,25888.0,71.71592992]
[1693829494964,3.09127699,25889.0,25888.0,71.71592992]
[1693829495178,3.09067699,25889.0,25888.0,71.71592992]
[1693829495557,3.09043699,25889.0,25888.0,71.71592992]
[1693829495785,3.09031699,25889.0,25888.0,71.71592992]
[1693829495973,3.08695699,25889.0,25888.0,71.71592992]
[1693829496319,3.08683699,25889.0,25888.0,71.71592992]
[1693829496522,3.08839699,25889.0,25888.0,71.71592992]
[1693829496721,3.08815699,25889.0,25888.0,71.71592992]
[1693829497709,3.08803699,25889.0,25888.0,71.71592992]
[1693829497826,3.08875699,25889.0,25888.0,71.71592992]
[1693829498269,3.08815699,25889.0,25888.0,71.71592992]
[1693829498467,3.08791699,25889.0,25888.0,71.71592992]
[1693829499727,3.09067699,25889.0,25888.0,71.71592992]
[1693829499931,3.0907047,25889.0,25888.0,71.71592992]
[1693829500148,3.0905847,25889.0,25888.0,71.71592992]
[1693829500350,2.83734379,25889.0,25888.0,71.71592992]
[1693829500575,3.12858917,25889.0,25888.0,71.71592992]
[1693829500861,3.12498917,25889.0,25888.0,71.71592992]
[1693829501093,3.12174917,25889.0,25888.0,71.71592992]
[1693829501493,3.12234917,25889.0,25888.0,71.71592992]
[1693829501738,3.12222917,25889.0,25888.0,71.71592992]
[1693829501981,3.12534917,25889.0,25888.0,71.71592992]
[1693829502155,3.12522917,25889.0,25888.0,71.71592992]
[1693829502382,3.12606917,25889.0,25888.0,71.71592992]
[1693829502587,3.12534917,25889.0,25888.0,71.71592992]
[1693829503059,3.12546917,25889.0,25888.0,71.60842992]
[1693829503485,3.12522917,25889.0,25888.0,71.60842992]
[1693829503695,3.12510917,25889.0,25888.0,71.60842992]
[1693829503900,3.12522917,25889.0,25888.0,71.60842992]
[1693829504086,3.12510917,25889.0,25888.0,71.60842992]
[1693829504287,3.12282917,25889.0,25888.0,71.60842992]
[1693829504496,3.12186917,25889.0,25888.0,71.60842992]
[1693829504717,3.12102917,25889.0,25888.0,71.60842992]
[1693829504922,3.11862917,25889.0,25888.0,71.60842992]
[1693829505124,3.11850917,25889.0,25888.0,71.60842992]
[1693829505298,3.11862917,25889.0,25888.0,71.60842992]
[1693829505506,3.11394917,25889.0,25888.0,71.60842992]
[1693829505709,3.11286917,25889.0,25888.0,71.60842992]
[1693829505892,3.11274917,25889.0,25888.0,71.60842992]
[1693829506256,3.11298917,25889.0,25888.0,71.60842992]
[1693829506482,3.11322917,25889.0,25888.0,71.60842992]
[1693829506888,3.11334917,25889.0,25888.0,71.60842992]
[1693829507330,3.11046917,25889.0,25888.0,71.60842992]
[1693829507534,3.10794917,25889.0,25888.0,71.60842992]
[1693829507739,3.10806917,25889.0,25888.0,71.60842992]
[1693829507945,3.10794917,25889.0,25888.0,71.60842992]
[1693829508367,3.10194917,25889.0,25888.0,71.60842992]
[1693829508577,3.10254917,25889.0,25888.0,71.60842992]
[1693829508793,3.10842917,25889.0,25888.0,71.60842992]
[1693829508998,3.10818917,25889.0,25888.0,71.60842992]
[1693829509236,3.09918917,25889.0,25888.0,71.60842992]
[1693829509445,3.09906917,25889.0,25888.0,71.60842992]
[1693829509649,3.09858917,25889.0,25888.0,71.60842992]
[1693829509854,3.09846917,25889.0,25888.0,71.60842992]
[1693829510076,3.09858917,25889.0,25888.0,71.60842992]
[1693829510316,3.10374917,25889.0,25888.0,71.60842992]
[1693829510525,3.11562917,25889.0,25888.0,71.60842992]
[1693829510731,3.11310917,25889.0,25888.0,71.60842992]
[1693829510939,3.11262917,25889.0,25888.0,71.60842992]
[1693829511122,3.11274917,25889.0,25888.0,71.60842992]
[1693829511366,3.11262917,25889.0,25888.0,71.60842992]
[1693829511592,3.11106917,25889.0,25888.0,71.60842992]
[1693829511779,3.11082917,25889.0,25888.0,71.60842992]